bitfinex/quotes_SOLUSD_20250823
["timestamp","ask_amount","ask_price","bid_price","bid_amount"]
[1755915450359,0.06,198.24,198.22,13.87991715]
[1755915450563,0.06,198.24,198.22,25.04495536]
[1755915450765,0.06,198.24,198.22,33.1876151]
[1755915451171,0.06,198.25,198.24,26.0]
[1755915451360,49.75265974,198.4,198.28,26.0]
[1755915451554,49.75265974,198.4,198.31,33.43265974]
[1755915451555,0.7,198.37,198.31,33.43265974]
[1755915451763,0.7,198.37,198.31,37.44936135]
[1755915452464,0.7,198.37,198.31,38.15936135]
[1755915453142,42.32,198.4,198.31,3.73237847]
[1755915453373,42.32,198.4,198.31,7.43265974]
[1755915453374,0.7,198.35,198.31,7.43265974]
[1755915453571,0.7,198.35,198.31,11.16015285]
[1755915453993,0.7,198.37,198.31,11.44447599]
[1755915454151,0.7,198.37,198.31,12.15447599]
[1755915455457,0.7,198.39,198.31,12.15447599]
[1755915455658,0.7,198.37,198.31,12.15447599]
[1755915456402,0.7,198.35,198.31,4.01181625]
[1755915456570,0.8,198.32,198.31,37.16015285]
[1755915457086,0.8,198.32,198.31,29.72749311]
[1755915457289,0.8,198.32,198.31,34.67166889]
[1755915457498,0.8,198.32,198.31,42.10432863]
[1755915457499,0.1,198.32,198.31,42.10432863]
[1755915458006,0.8,198.32,198.31,34.67166889]
[1755915458205,0.8,198.32,198.31,29.72749311]
[1755915458369,0.8,198.32,198.31,3.72749311]
[1755915458772,0.8,198.32,198.31,29.72749311]
[1755915458974,0.1,198.32,198.31,11.16015285]
[1755915459201,0.1,198.32,198.31,3.72749311]
[1755915460772,0.8,198.32,198.31,3.72749311]
[1755915460976,0.8,198.32,198.31,29.72749311]
[1755915462290,0.8,198.32,198.31,26.0]
[1755915462491,0.8,198.32,198.31,29.71431869]
[1755915463009,0.1,198.32,198.31,29.71321856]
[1755915463734,10.0,198.48,198.31,29.71321856]
[1755915463735,0.7,198.54,198.33,26.0]
[1755915463887,22.80993074,198.71,198.32,85.09559401]
[1755915463888,0.7,198.56,198.53,26.0]
[1755915464218,0.7,198.56,198.54,3.71321856]
[1755915464430,0.7,198.56,198.55,29.71321856]
[1755915464893,0.7,198.56,198.55,26.0]
[1755915465225,0.7,198.56,198.52,33.43265974]
[1755915465521,7.43265974,198.59,198.53,3.69392829]
[1755915465721,0.7,198.56,198.53,3.69392829]
[1755915466280,7.43265974,198.59,198.54,3.68478963]
[1755915466503,0.7,198.56,198.52,33.43265974]
[1755915466702,0.7,198.55,198.54,26.0]
[1755915467230,0.7,198.55,198.52,7.43265974]
[1755915467512,0.7,198.54,198.53,26.0]
[1755915467994,0.7,198.54,198.51,7.43265974]
[1755915468194,0.7,198.54,198.52,3.68067128]
[1755915468411,0.7,198.54,198.51,7.43265974]
[1755915468807,7.43265974,198.57,198.5,26.0]
[1755915469009,13.59559401,198.62,198.51,3.67850901]
[1755915469010,0.7,198.53,198.51,3.67850901]
[1755915469192,0.7,198.52,198.48,7.43265974]
[1755915469392,0.7,198.55,198.49,11.10946334]
[1755915469617,8.13265974,198.55,198.5,3.6768036]
[1755915469914,0.7,198.54,198.5,3.6768036]
[1755915470113,0.7,198.53,198.5,3.6768036]
[1755915470718,0.7,198.53,198.51,3.6768036]
[1755915470892,0.7,198.53,198.48,33.43265974]
[1755915471088,0.7,198.52,198.48,33.43265974]
[1755915471294,0.7,198.51,198.5,26.0]
[1755915471517,0.7,198.51,198.5,29.67651259]
[1755915471725,8.13265974,198.54,198.5,29.67651259]
[1755915471923,0.7,198.53,198.48,7.43265974]
[1755915472092,0.7,198.53,198.49,3.67567569]
[1755915474407,0.7,198.53,198.5,3.67900496]
[1755915474613,0.7,198.53,198.51,3.67900496]
[1755915474916,0.7,198.53,198.48,8.14265974]
[1755915475121,7.43265974,198.54,198.49,3.67705481]
[1755915475336,0.7,198.52,198.5,3.67705481]
[1755915475494,0.7,198.52,198.43,0.71]
[1755915475694,0.7,198.52,198.44,3.68137268]
[1755915475891,0.7,198.52,198.45,3.68137268]
[1755915476112,0.7,198.52,198.46,3.68137268]
[1755915476343,42.22432314,198.57,198.47,4.39137268]
[1755915476500,7.43265974,198.53,198.48,3.68137268]
[1755915476823,8.13265974,198.53,198.49,3.68137268]
[1755915477002,41.94,198.57,198.5,3.68137268]
[1755915477202,7.43265974,198.55,198.51,3.68137268]
[1755915477394,7.43265974,198.54,198.49,0.71]
[1755915477596,7.43265974,198.54,198.5,3.67891526]
[1755915477794,7.43265974,198.54,198.51,3.67891526]
[1755915478109,7.43265974,198.54,198.52,3.67811417]
[1755915478421,7.43265974,198.54,198.53,3.67811417]
[1755915479315,8.14265974,198.54,198.53,3.67811417]
[1755915479630,0.71,198.54,198.49,3.67811417]
[1755915479809,8.14265974,198.54,198.5,3.67811417]
[1755915480004,8.14265974,198.54,198.51,3.67811417]
[1755915480218,0.71,198.53,198.44,8.112659]
[1755915480407,7.43265974,198.5,198.47,26.0]
[1755915480609,7.43265974,198.5,198.48,3.67667696]
[1755915480807,7.43265974,198.5,198.49,3.67708697]
[1755915483425,8.14265974,198.5,198.49,3.67708697]
[1755915483605,0.71,198.5,198.49,3.68165222]
[1755915485127,79.0,198.49,198.43,26.0]
[1755915485428,7.43265974,198.45,198.44,3.68501844]
[1755915486002,79.0,198.47,198.44,3.68501844]
[1755915486201,79.0,198.47,198.45,3.68501844]
[1755915486421,79.0,198.47,198.46,3.68501844]
[1755915486625,92.59559401,198.47,198.46,3.68501844]
[1755915486843,93.30559401,198.47,198.46,3.68501844]
[1755915487647,86.43265974,198.47,198.46,3.68501844]
[1755915488424,87.14265974,198.47,198.46,3.69064724]
[1755915488834,87.14265974,198.47,198.41,26.68]
[1755915489030,7.43265974,198.44,198.42,3.69063451]
[1755915489237,7.43265974,198.44,198.43,3.69194643]
[1755915489436,8.14265974,198.44,198.43,3.69194643]
[1755915489633,7.43265974,198.44,198.43,3.69194643]
[1755915489935,21.73825375,198.44,198.43,3.69194643]
[1755915490509,42.04,198.45,198.43,3.69194643]
[1755915490705,42.04,198.45,198.44,3.69194643]
[1755915491224,56.34559401,198.45,198.44,3.69194643]
[1755915491810,63.77825375,198.45,198.44,3.69194643]
[1755915494939,92.59559401,198.44,198.36,0.03]
[1755915495131,7.43265974,198.37,198.36,0.03]
[1755915495337,49.33265974,198.37,198.36,0.03]
[1755915497042,41.9,198.37,198.36,0.03]
[1755915497251,49.33265974,198.37,198.36,0.03]
[1755915498331,63.63825375,198.37,198.36,0.03]
[1755915499166,63.92257689,198.37,198.36,0.03]
[1755915500419,13.87991715,198.36,198.27,0.68]
[1755915500615,7.43265974,198.28,198.27,0.68]
[1755915501048,7.43265974,198.28,198.26,0.03]
[1755915501244,7.43265974,198.27,198.26,0.03]
[1755915502452,7.43265974,198.27,198.26,0.71]
[1755915504925,7.43265974,198.27,198.26,0.03]
[1755915506061,21.71825375,198.27,198.26,0.03]
[1755915507332,135.09,198.32,198.26,0.69]
[1755915507543,7.43265974,198.28,198.26,0.69]
[1755915507738,135.09,198.32,198.26,0.69]
[1755915507739,134.4,198.32,198.26,0.69]
[1755915507939,7.43265974,198.3,198.27,3.55553782]
[1755915508159,7.43265974,198.3,198.28,0.66]
[1755915508333,41.66,198.31,198.29,0.66]
[1755915508538,41.66,198.31,198.3,0.66]
[1755915508949,120.66,198.31,198.3,0.66]
[1755915509135,120.66,198.31,198.26,0.03]
[1755915509136,120.66,198.31,198.26,7.46265974]
[1755915509454,79.0,198.31,198.28,8.09265974]
[1755915509653,41.62,198.34,198.3,7.43265974]
[1755915509970,41.62,198.34,198.31,4.21624482]
[1755915510162,41.62,198.34,198.3,7.43265974]
[1755915510376,41.62,198.34,198.32,0.66]
[1755915510658,41.58,198.37,198.33,10.98633774]
[1755915510837,41.58,198.38,198.34,0.66]
[1755915511037,41.58,198.38,198.35,0.66]
[1755915511239,41.58,198.38,198.36,4.21251868]
[1755915511434,41.58,198.38,198.36,0.66]
[1755915511875,41.58,198.38,198.34,7.43265974]
[1755915512045,41.58,198.38,198.35,4.21282347]
[1755915512247,41.58,198.38,198.35,0.66]
[1755915513146,49.70265974,198.38,198.32,8.09265974]
[1755915513367,7.43265974,198.37,198.34,26.0]
[1755915514255,41.58,198.38,198.35,3.55763101]
[1755915514449,21.02825375,198.42,198.36,11.64891972]
[1755915514642,41.48,198.41,198.37,3.55625998]
[1755915515142,41.48,198.41,198.37,4.21625998]
[1755915515337,41.48,198.41,198.37,0.66]
[1755915515950,7.43265974,198.39,198.35,0.03]
[1755915516163,7.43265974,198.39,198.36,26.0]
[1755915516164,41.46,198.38,198.36,26.0]
[1755915516350,41.46,198.38,198.35,0.03]
[1755915516351,121.15,198.38,198.35,26.03]
[1755915516675,8.12265974,198.37,198.35,0.03]
[1755915517075,7.43265974,198.36,198.35,0.03]
[1755915517266,7.43265974,198.37,198.35,3.59178875]
[1755915517572,48.89265974,198.38,198.35,0.03]
[1755915518278,48.89265974,198.38,198.36,3.56058209]
[1755915518572,7.43265974,198.37,198.35,0.03]
[1755915518966,8.12265974,198.37,198.35,0.03]
[1755915519677,7.43265974,198.37,198.35,0.03]
[1755915521166,41.4,198.36,198.35,0.03]
[1755915521474,55.68559401,198.36,198.35,0.03]
[1755915521655,63.11825375,198.36,198.35,0.03]
[1755915522445,49.52265974,198.36,198.35,0.03]
[1755915522649,63.11825375,198.36,198.35,0.03]
[1755915525260,54.99559401,198.36,198.35,0.03]
[1755915525455,62.42825375,198.36,198.35,0.03]
[1755915525865,48.83265974,198.36,198.35,0.03]
[1755915526066,41.4,198.36,198.35,4.25978073]
[1755915526358,7.49265974,198.44,198.35,37.97676361]
[1755915526682,41.34,198.43,198.38,7.43265974]
[1755915526881,41.34,198.43,198.39,4.22978073]
[1755915527084,41.34,198.43,198.4,4.22978073]
[1755915527293,41.34,198.43,198.41,3.56978073]
[1755915527480,41.34,198.43,198.42,3.56978073]
[1755915528087,41.34,198.43,198.42,4.22978073]
[1755915529866,48.77265974,198.43,198.42,2.26978073]
[1755915530076,48.77265974,198.43,198.35,0.03]
[1755915530077,13.59559401,198.42,198.35,0.03]
[1755915530263,7.43265974,198.36,198.35,0.03]
[1755915530467,50.83265974,198.36,198.35,0.03]
[1755915530878,43.4,198.36,198.35,0.03]
[1755915531060,50.83265974,198.36,198.35,0.03]
[1755915531395,43.4,198.36,198.35,0.03]
[1755915531593,50.83265974,198.36,198.35,0.03]
[1755915532098,43.4,198.36,198.35,0.69]
[1755915532578,7.43265974,198.38,198.35,0.69]
[1755915532896,43.36,198.38,198.36,0.66]
[1755915533098,43.36,198.38,198.37,0.66]
[1755915534895,0.06,198.43,198.37,0.66]
[1755915535265,0.06,198.43,198.41,7.43265974]
[1755915535463,0.06,198.44,198.35,0.31432314]
[1755915535464,0.06,198.44,198.42,8.09265974]
[1755915535697,0.06,198.44,198.42,0.66]
[1755915536272,0.06,198.44,198.43,26.66]
[1755915537072,0.06,198.44,198.38,0.71]
[1755915537073,51.05265974,198.44,198.38,0.71]
[1755915537390,7.43265974,198.41,198.36,0.71]
[1755915537573,43.52,198.4,198.36,0.71]
[1755915537769,43.52,198.4,198.36,34.14265974]
[1755915537968,43.52,198.4,198.37,0.71]
[1755915538174,43.52,198.4,198.38,0.71]
[1755915539303,50.95265974,198.4,198.36,26.0]
[1755915539596,7.43265974,198.39,198.36,26.71]
[1755915539981,7.43265974,198.39,198.36,0.71]
[1755915540181,7.43265974,198.37,198.35,0.03]
[1755915540374,43.42,198.36,198.35,0.03]
[1755915540802,64.44825375,198.36,198.35,0.03]
[1755915541312,43.42,198.36,198.35,0.74]
[1755915542079,43.42,198.36,198.35,3.49506374]
[1755915542587,7.43265974,198.37,198.35,3.49506374]
[1755915542588,79.0,198.4,198.35,11.63772348]
[1755915542809,43.38,198.39,198.36,4.17506374]
[1755915542978,79.0,198.4,198.37,11.60772348]
[1755915543183,86.43265974,198.4,198.38,3.46506374]
[1755915543376,86.43265974,198.4,198.35,0.03]
[1755915543574,43.36,198.41,198.36,3.4666047]
[1755915543575,7.43265974,198.38,198.36,3.4666047]
[1755915543807,50.79265974,198.37,198.36,3.4666047]
[1755915544007,50.79265974,198.37,198.35,0.03]
[1755915544174,7.43265974,198.36,198.35,0.03]
[1755915544381,7.43265974,198.36,198.35,3.49815132]
[1755915545090,21.02825375,198.36,198.35,0.03]
[1755915545616,7.43265974,198.36,198.35,3.49863809]
[1755915547112,43.36,198.37,198.35,3.49863809]
[1755915547317,7.43265974,198.36,198.35,0.03]
[1755915547513,43.36,198.37,198.35,3.49921867]
[1755915547813,7.43265974,198.36,198.35,0.03]
[1755915548015,21.08825375,198.36,198.35,0.03]
[1755915548597,13.59559401,198.35,198.34,0.03]
[1755915548798,64.43825375,198.35,198.34,0.03]
[1755915551686,64.72257689,198.35,198.33,0.03]
[1755915551885,21.05825375,198.34,198.33,0.03]
[1755915552410,21.31257689,198.32,198.31,0.03]
[1755915552610,64.55257689,198.32,198.31,0.03]
[1755915552783,64.58257689,198.32,198.31,0.03]
[1755915554294,0.28432314,198.3,198.22,0.03]
[1755915554495,7.43265974,198.27,198.22,0.03]
[1755915554798,50.63265974,198.27,198.22,0.03]
[1755915555005,64.54257689,198.27,198.22,0.03]
[1755915555493,21.02825375,198.27,198.23,0.71]
[1755915555689,64.23825375,198.27,198.22,0.03]
[1755915555890,64.49257689,198.27,198.22,0.03]
[1755915557137,64.52257689,198.27,198.22,0.03]
[1755915559817,64.49257689,198.27,198.22,0.03]
[1755915560908,64.20825375,198.27,198.23,0.71]
[1755915561123,78.26,198.23,198.22,0.03]
[1755915561311,43.04,198.23,198.22,0.03]
[1755915561913,50.47265974,198.23,198.22,0.03]
[1755915562319,64.02825375,198.23,198.22,0.03]
[1755915563130,64.02825375,198.23,198.22,0.74]
[1755915563312,43.0,198.23,198.22,0.74]
[1755915563514,7.43265974,198.23,198.22,0.74]
[1755915563837,42.96,198.23,198.22,0.74]
[1755915564642,50.39265974,198.23,198.22,0.74]
[1755915565217,50.39265974,198.23,198.22,4.46163871]
[1755915565916,56.55559401,198.23,198.22,4.46163871]
[1755915566118,63.98825375,198.23,198.22,3.75163871]
[1755915566654,63.98825375,198.23,198.22,0.03]
[1755915568040,64.69825375,198.23,198.22,0.03]
[1755915568255,64.98257689,198.23,198.22,0.03]
[1755915569145,13.87991715,198.22,198.16,0.2]
[1755915569350,21.02825375,198.17,198.16,0.2]
[1755915569645,63.80825375,198.17,198.16,3.91971317]
[1755915569828,63.80825375,198.17,198.16,0.2]
[1755915570034,63.80825375,198.17,198.16,0.87]
[1755915570424,63.80825375,198.17,198.16,4.58862754]
[1755915570425,50.19265974,198.17,198.16,4.58862754]
[1755915570624,7.43265974,198.17,198.16,4.58862754]
[1755915570821,42.76,198.17,198.16,4.58862754]
[1755915571046,7.43265974,198.17,198.16,4.58862754]
[1755915571225,50.17265974,198.17,198.16,4.58862754]
[1755915571633,42.74,198.17,198.16,4.58862754]
[1755915573339,63.76825375,198.17,198.16,0.2]
[1755915573859,50.17265974,198.17,198.16,0.87]
[1755915574150,63.76825375,198.17,198.16,3.9181021]
[1755915574451,63.76825375,198.17,198.16,0.2]
[1755915575537,56.33559401,198.17,198.16,0.87]
[1755915575754,63.76825375,198.17,198.16,0.87]
[1755915575960,56.33559401,198.17,198.16,0.87]
[1755915576127,63.76825375,198.17,198.16,0.87]
[1755915576333,50.17265974,198.17,198.16,0.87]
[1755915576651,42.74,198.17,198.16,0.87]
[1755915576826,50.17265974,198.17,198.16,0.87]
[1755915577230,50.17265974,198.17,198.16,4.58631447]
[1755915578241,50.17265974,198.17,198.16,0.2]
[1755915578657,42.74,198.17,198.16,0.87]
[1755915578954,50.17265974,198.17,198.16,0.87]
[1755915579142,50.17265974,198.17,198.16,4.58597325]
[1755915579551,50.17265974,198.17,198.16,0.2]
[1755915580052,63.76825375,198.17,198.16,0.2]
[1755915580547,56.33559401,198.17,198.16,3.91809947]
[1755915580749,63.76825375,198.17,198.16,3.91809947]
[1755915581249,63.76825375,198.17,198.16,3.92053964]
[1755915581645,50.17265974,198.17,198.16,4.59053964]
[1755915582050,50.17265974,198.17,198.16,3.92053964]
[1755915582560,42.74,198.17,198.16,4.59053964]
[1755915582774,50.17265974,198.17,198.16,4.59053964]
[1755915584362,50.17265974,198.17,198.16,4.59670078]
[1755915586373,47.3319615,198.17,198.16,4.59670078]
[1755915587250,42.34,198.17,198.16,0.87]
[1755915587570,42.3,198.17,198.16,4.6013649]
[1755915588463,4.5919615,198.2,198.16,4.6013649]
[1755915588653,83.5919615,198.21,198.17,4.4013649]
[1755915588842,42.3,198.2,198.18,4.4013649]
[1755915589041,42.3,198.2,198.19,4.4013649]
[1755915589258,46.8919615,198.2,198.19,4.4013649]
[1755915589768,4.5919615,198.2,198.19,3.7313649]
[1755915589946,46.8519615,198.2,198.19,3.7313649]
[1755915590464,46.8519615,198.2,198.19,4.4013649]
[1755915590465,42.26,198.2,198.19,4.4013649]
[1755915590657,42.22,198.2,198.19,4.4013649]
[1755915590856,0.06,198.22,198.19,8.9933264]
[1755915591041,0.06,198.22,198.21,4.5919615]
[1755915591367,42.22,198.23,198.21,8.9933264]
[1755915591564,0.06,198.26,198.22,8.9933264]
[1755915591764,42.2,198.25,198.24,4.5919615]
[1755915591953,42.2,198.25,198.24,8.9933264]
[1755915594060,0.06,198.26,198.24,8.9933264]
[1755915594266,0.06,198.26,198.25,8.9933264]
[1755915594852,0.06,198.26,198.25,9.27764954]
[1755915596351,0.06,198.26,198.25,5.54628464]
[1755915596679,0.06,198.26,198.25,9.28170116]
[1755915596875,0.06,198.26,198.25,5.54628464]
[1755915597082,0.06,198.26,198.25,4.40304787]
[1755915597446,0.06,198.26,198.25,8.99500937]
[1755915597648,0.06,198.26,198.25,9.27933251]
[1755915600058,0.06,198.26,198.25,8.99500937]
[1755915600865,0.06,198.26,198.25,3.73304787]
[1755915601085,0.06,198.26,198.25,29.73304787]
[1755915601696,0.75,198.26,198.25,3.73304787]
[1755915602561,5.3419615,198.26,198.25,3.73304787]
[1755915603083,18.93755551,198.26,198.25,3.73304787]
[1755915603493,14.34559401,198.26,198.25,3.73304787]
[1755915603671,18.93755551,198.26,198.25,3.73304787]
[1755915603859,14.34559401,198.26,198.25,3.73304787]
[1755915604060,18.93755551,198.26,198.25,3.73304787]
[1755915604384,13.59559401,198.25,198.16,0.2]
[1755915604573,4.5919615,198.18,198.17,3.74085299]
[1755915604774,46.5919615,198.18,198.17,3.74085299]
[1755915605289,42.0,198.18,198.17,3.74085299]
[1755915605470,46.5919615,198.18,198.17,3.74085299]
[1755915605673,42.69,198.18,198.17,3.74085299]
[1755915605894,47.2819615,198.18,198.17,3.74085299]
[1755915606277,46.5919615,198.18,198.17,3.74085299]
[1755915606676,47.2819615,198.18,198.17,3.74085299]
[1755915607114,46.5919615,198.18,198.17,3.74085299]
[1755915607590,46.5919615,198.18,198.17,3.74560119]
[1755915608296,49.43414031,198.18,198.17,3.74560119]
[1755915610192,7.43414031,198.18,198.17,3.74560119]
[1755915610415,49.35414031,198.18,198.17,3.74560119]
[1755915610583,41.88,198.18,198.17,4.45560119]
[1755915611097,41.88,198.18,198.17,3.74560119]
[1755915611683,0.06,198.26,198.17,30.45560119]
[1755915611684,13.59559401,198.25,198.17,30.45560119]
[1755915611877,79.0,198.24,198.2,33.43414031]
[1755915612079,41.84,198.23,198.22,7.43414031]
[1755915612283,41.84,198.23,198.22,11.1797415]
[1755915612607,41.84,198.23,198.22,11.8897415]
[1755915612972,0.06,198.26,198.22,11.8897415]
[1755915613180,41.84,198.25,198.24,7.43414031]
[1755915613393,41.84,198.25,198.24,11.87654893]
[1755915614015,41.84,198.25,198.24,11.87664532]
[1755915614500,41.84,198.25,198.24,4.44250501]
[1755915614894,41.84,198.25,198.24,3.73250501]
[1755915615089,49.27414031,198.25,198.24,3.73250501]
[1755915615328,62.86973432,198.25,198.24,3.73250501]
[1755915615497,49.27414031,198.25,198.24,3.73250501]
[1755915615689,7.43414031,198.25,198.24,3.73250501]
[1755915615895,49.21414031,198.25,198.24,3.73250501]
[1755915618390,49.17414031,198.25,198.24,3.73250501]
[1755915618798,49.86414031,198.25,198.24,3.73250501]
[1755915619020,49.17414031,198.25,198.24,3.73250501]
[1755915622210,49.86414031,198.25,198.24,3.73250501]
[1755915622391,49.86414031,198.25,198.22,0.03]
[1755915622589,49.86414031,198.25,198.23,3.73297895]
[1755915622799,49.86414031,198.25,198.24,3.73297895]
[1755915623012,49.86414031,198.25,198.24,3.73330852]
[1755915623400,49.86414031,198.25,198.24,3.73345787]
[1755915623718,63.45973432,198.25,198.22,0.03]
[1755915624025,21.02973432,198.23,198.22,0.03]
[1755915624188,55.19559401,198.23,198.22,3.76592784]
[1755915624387,62.62973432,198.23,198.22,3.76592784]
[1755915624610,63.31973432,198.23,198.22,3.76592784]
[1755915625507,79.0,198.24,198.22,3.76592784]
[1755915625818,62.60973432,198.23,198.22,0.03]
[1755915626013,62.60973432,198.23,198.22,3.76734075]
[1755915626316,21.71973432,198.23,198.22,3.76734075]
[1755915626518,63.27973432,198.23,198.22,3.76734075]
[1755915627515,62.58973432,198.23,198.22,3.76734075]
[1755915627905,63.26973432,198.23,198.22,3.76734075]
[1755915628311,60.42639361,198.23,198.22,3.76734075]
[1755915630602,18.18639361,198.23,198.22,3.76734075]
[1755915630802,59.64639361,198.23,198.22,3.76734075]
[1755915631204,18.18639361,198.23,198.22,3.76734075]
[1755915631404,59.64639361,198.23,198.22,3.76734075]
[1755915631609,59.64639361,198.23,198.22,3.77011518]
[1755915634938,194.72639361,198.23,198.22,3.77011518]
[1755915636630,194.04639361,198.23,198.22,3.77011518]
[1755915637626,194.04639361,198.23,198.22,3.76939465]
[1755915640607,194.04639361,198.23,198.22,0.03]
[1755915640808,75.19538591,198.2,198.18,0.69]
[1755915641037,121.24618551,198.19,198.18,0.69]
[1755915641233,121.24618551,198.19,198.18,0.03]
[1755915641531,116.65538591,198.19,198.18,0.03]
[1755915641827,116.65538591,198.19,198.18,0.69]
[1755915643031,121.24618551,198.19,198.18,0.69]
[1755915645339,121.24618551,198.19,198.18,0.03]
[1755915645926,116.65538591,198.19,198.18,0.69]
[1755915646131,121.24618551,198.19,198.18,0.69]
[1755915646831,46.0507996,198.19,198.18,0.69]
[1755915648935,46.0507996,198.19,198.18,0.03]
[1755915649136,46.0507996,198.19,198.18,0.69]
[1755915651723,46.0307996,198.19,198.18,0.69]
[1755915652842,46.0307996,198.19,198.18,4.44551947]
[1755915653548,4.5907996,198.21,198.18,4.44551947]
[1755915653723,41.44,198.2,198.19,4.41551947]
[1755915654455,138.9907996,198.22,198.19,4.41551947]
[1755915654643,41.44,198.21,198.2,4.41551947]
[1755915654829,46.0307996,198.21,198.2,4.41551947]
[1755915655028,4.5907996,198.21,198.2,4.41551947]
[1755915655229,46.0307996,198.21,198.2,4.41551947]
[1755915655645,125.0307996,198.21,198.2,4.41551947]
[1755915656433,120.44,198.21,198.2,4.41551947]
[1755915656634,83.5907996,198.21,198.2,4.41551947]
[1755915656836,125.0307996,198.21,198.2,4.41551947]
[1755915657431,125.0307996,198.21,198.2,3.75551947]
[1755915658658,125.0307996,198.21,198.18,0.03]
[1755915658837,4.5907996,198.2,198.19,3.75773784]
[1755915659360,4.5907996,198.2,198.19,3.75759621]
[1755915662041,5.2907996,198.2,198.19,3.75759621]
[1755915662968,18.88639361,198.2,198.19,3.75759621]
[1755915666741,13.87991715,198.19,198.18,0.03]
[1755915667056,60.59071675,198.19,198.18,3.7935184]
[1755915667360,60.59071675,198.19,198.18,3.79010273]
[1755915667536,60.59071675,198.19,198.15,0.2]
[1755915667537,13.87991715,198.16,198.15,0.2]
[1755915667735,0.28432314,198.15,198.11,0.03]
[1755915667942,18.47071675,198.13,198.11,0.03]
[1755915668153,19.17071675,198.13,198.11,0.03]
[1755915671358,19.17071675,198.13,198.12,0.03]
[1755915671757,4.5907996,198.13,198.12,0.71]
[1755915671928,59.60639361,198.13,198.12,0.71]
[1755915672735,46.0107996,198.13,198.12,0.71]
[1755915673356,4.5907996,198.13,198.12,0.71]
[1755915673546,46.0107996,198.13,198.12,0.71]
[1755915673733,4.5907996,198.13,198.12,0.71]
[1755915673943,46.0107996,198.13,198.12,0.71]
[1755915676335,45.9907996,198.13,198.12,0.71]
[1755915676537,41.4,198.13,198.12,0.71]
[1755915676765,134.4,198.15,198.12,0.71]
[1755915676938,41.4,198.14,198.12,0.71]
[1755915677140,45.9907996,198.14,198.13,0.68]
[1755915679450,45.9907996,198.14,198.13,3.6555026]
[1755915680467,45.9907996,198.14,198.13,4.3355026]
[1755915681171,45.9907996,198.14,198.13,3.6555026]
[1755915682941,60.28639361,198.14,198.13,3.6555026]
[1755915683373,59.58639361,198.14,198.13,3.6555026]
[1755915684363,41.46,198.14,198.13,4.3655026]
[1755915684569,46.0307996,198.14,198.13,4.3655026]
[1755915685077,46.0307996,198.14,198.13,0.71]
[1755915685368,46.0307996,198.14,198.13,4.36206166]
[1755915686346,46.0307996,198.14,198.13,3.68206166]
[1755915686862,41.44,198.14,198.13,3.68206166]
[1755915687056,46.0307996,198.14,198.13,3.68206166]
[1755915687363,60.33639361,198.14,198.13,3.68206166]
[1755915688345,59.62639361,198.14,198.13,3.68206166]
[1755915688547,60.33639361,198.14,198.13,3.68206166]
[1755915688746,60.33639361,198.14,198.13,0.03]
[1755915690151,13.59559401,198.13,198.12,0.03]
[1755915690356,0.28432314,198.12,198.11,0.03]
[1755915690556,60.54071675,198.12,198.11,0.03]
[1755915691476,60.25639361,198.12,198.11,0.03]
[1755915691684,59.54639361,198.12,198.11,0.03]
[1755915695006,60.25639361,198.12,198.11,0.03]
[1755915695663,59.54639361,198.12,198.11,0.03]
[1755915695863,60.54071675,198.12,198.11,0.03]
[1755915696876,62.56239975,198.12,198.11,0.03]
[1755915697069,20.20807661,198.12,198.11,0.03]
[1755915697253,59.52639361,198.12,198.11,0.74]
[1755915697667,59.52639361,198.12,198.11,0.03]
[1755915697878,59.52639361,198.12,198.11,0.74]
[1755915698082,78.23,198.09,198.07,0.03]
[1755915698294,124.1607996,198.08,198.07,0.03]
[1755915698472,124.1607996,198.08,198.07,3.68685496]
[1755915698669,119.57,198.08,198.07,3.68685496]